bitfinex/quotes_ETHUSD_20250525
["timestamp","ask_amount","ask_price","bid_price","bid_amount"]
[1748150728066,2.37658747,2507.3,2507.1,0.05]
[1748150728067,16.18481468,2507.3,2507.1,0.05]
[1748150728265,5.73638503,2507.2,2507.1,0.05]
[1748150728469,24.20827759,2507.2,2507.1,0.05]
[1748150728669,26.07684445,2507.2,2507.1,6.416]
[1748150729168,26.07684445,2507.2,2507.1,0.05]
[1748150729371,26.07684445,2507.2,2507.1,6.416]
[1748150730313,26.07684445,2507.2,2507.1,0.05]
[1748150730485,26.07684445,2507.2,2507.1,6.417]
[1748150730995,26.07684445,2507.2,2507.1,0.05]
[1748150731299,26.07684445,2507.2,2507.1,6.417]
[1748150733522,26.07968732,2507.2,2507.1,6.417]
[1748150734688,24.15841328,2507.2,2507.1,6.417]
[1748150734960,26.07968732,2507.2,2507.1,6.417]
[1748150735933,26.71173265,2507.2,2507.1,6.417]
[1748150736820,26.07968732,2507.2,2507.1,6.417]
[1748150737609,26.07968732,2507.2,2507.1,27.375]
[1748150737929,12.99611328,2507.2,2507.1,27.375]
[1748150738532,12.99611328,2507.2,2507.1,13.048]
[1748150739940,12.62488107,2507.2,2507.1,13.048]
[1748150740133,12.99531607,2507.2,2507.1,6.417]
[1748150740598,12.44531607,2507.2,2507.1,6.417]
[1748150740803,9.87123104,2507.2,2507.1,6.417]
[1748150742933,21.57243104,2507.2,2507.1,0.05]
[1748150743113,21.57243104,2507.2,2507.1,6.417]
[1748150744725,21.57243104,2507.2,2507.1,0.05]
[1748150744925,21.57243104,2507.2,2507.1,6.417]
[1748150745128,23.92180155,2507.2,2507.1,6.417]
[1748150746817,14.60960155,2507.2,2507.1,6.417]
[1748150747017,12.26023104,2507.2,2507.1,6.417]
[1748150747219,9.87123104,2507.2,2507.1,6.417]
[1748150747528,9.87123104,2507.2,2507.1,27.375]
[1748150748036,9.87123104,2507.2,2507.1,13.048]
[1748150748237,9.87123104,2507.2,2507.1,6.418]
[1748150748553,11.43305804,2507.2,2507.1,6.418]
[1748150751217,16.29333208,2507.2,2507.1,0.05]
[1748150751416,16.92609702,2507.2,2507.1,6.418]
[1748150753365,14.81427002,2507.2,2507.1,6.418]
[1748150753709,12.89299598,2507.2,2507.1,6.418]
[1748150754421,12.89299598,2507.2,2507.1,6.368]
[1748150754722,10.50399598,2507.2,2507.1,7.1482]
[1748150755959,9.87123104,2507.2,2507.1,0.7802]
[1748150756122,9.87123104,2507.2,2507.1,7.1472]
[1748150756323,9.50079604,2507.2,2507.1,7.1472]
[1748150757422,9.50079604,2507.2,2507.1,33.8552]
[1748150758483,9.50079604,2507.2,2507.1,28.1252]
[1748150760577,9.50079604,2507.2,2507.1,13.7982]
[1748150760889,9.50079604,2507.2,2507.1,0.7802]
[1748150761045,9.50079604,2507.2,2507.1,7.1472]
[1748150761988,9.50079604,2507.2,2507.1,7.0972]
[1748150767542,9.50079604,2507.2,2507.1,33.8022]
[1748150768198,9.50079604,2507.2,2507.1,13.7472]
[1748150768703,9.50079604,2507.2,2506.1,0.05]
[1748150768704,1.92127404,2507.3,2506.2,0.8021]
[1748150768845,1.92127404,2507.3,2506.3,6.366]
[1748150768846,0.04986307,2507.2,2506.3,6.366]
[1748150769194,0.04986307,2507.2,2506.4,0.8021]
[1748150770003,0.3708868,2507.1,2506.4,0.8021]
[1748150770185,8.3708868,2507.1,2506.4,0.8021]
[1748150770988,8.0,2507.1,2506.4,0.8021]
[1748150771198,12.4730335,2507.1,2506.5,6.366]
[1748150772006,12.4730335,2507.1,2506.4,0.8021]
[1748150772177,0.37082004,2507.0,2506.5,6.366]
[1748150772796,10.28529604,2506.9,2506.4,0.8021]
[1748150773091,10.28529604,2506.9,2506.5,6.367]
[1748150773267,1.43643165,2506.8,2506.5,6.367]
[1748150774408,0.37082004,2506.7,2506.5,6.367]
[1748150775292,1.06561161,2506.8,2506.5,6.367]
[1748150777488,1.06561161,2506.8,2506.6,20.978]
[1748150777696,0.37072506,2506.7,2506.6,20.978]
[1748150778591,10.28529604,2506.9,2506.6,20.978]
[1748150778820,12.81653289,2506.9,2506.6,20.978]
[1748150778991,12.81653289,2506.9,2506.4,0.8021]
[1748150779385,12.81653289,2506.9,2506.5,6.367]
[1748150779754,0.37055044,2506.8,2506.5,6.367]
[1748150780399,12.81653289,2506.9,2506.5,6.367]
[1748150780589,1.34492978,2506.8,2506.5,6.367]
[1748150781603,1.34492978,2506.8,2506.4,0.8021]
[1748150781772,1.34492978,2506.8,2506.5,6.368]
[1748150782600,0.37046699,2506.8,2506.5,6.368]
[1748150783305,9.50079604,2506.9,2506.5,6.368]
[1748150783599,0.7713,2507.0,2506.4,0.8021]
[1748150783600,8.0,2506.6,2506.4,0.8021]
[1748150783829,8.0,2506.6,2506.2,0.8201]
[1748150784189,8.0,2506.6,2506.3,6.368]
[1748150784608,10.5055796,2506.6,2506.4,6.368]
[1748150784966,10.5055796,2506.6,2506.1,0.05]
[1748150785179,10.5055796,2506.6,2506.2,6.368]
[1748150786720,10.5055796,2506.6,2506.1,0.05]
[1748150786906,8.0,2506.4,2506.2,6.368]
[1748150787619,8.0,2506.4,2506.3,26.723]
[1748150789324,8.0,2506.4,2506.3,20.992]
[1748150789523,8.0,2506.4,2506.3,6.663]
[1748150790501,8.0,2506.4,2506.1,0.05]
[1748150790714,8.0,2506.4,2506.2,6.368]
[1748150791018,8.0,2506.4,2506.1,0.05]
[1748150791351,8.0,2506.4,2506.2,6.368]
[1748150792725,9.50079604,2506.5,2506.3,0.7736]
[1748150795933,10.45087564,2506.5,2506.3,0.7736]
[1748150796138,10.45087564,2506.5,2506.2,6.368]
[1748150796647,10.45087564,2506.5,2506.3,6.368]
[1748150797015,2.389,2506.4,2506.3,6.368]
[1748150797199,10.45087564,2506.5,2506.3,6.368]
[1748150797744,10.45087564,2506.5,2506.4,26.723]
[1748150798126,10.45087564,2506.5,2506.4,20.992]
[1748150798321,10.82179658,2506.5,2506.4,20.992]
[1748150799043,10.82179658,2506.5,2506.4,14.329]
[1748150799229,10.82179658,2506.5,2506.4,27.36]
[1748150799544,10.82179658,2506.5,2506.4,6.368]
[1748150800243,10.82179658,2506.5,2506.1,0.8236]
[1748150800406,1.38435615,2506.4,2506.2,6.368]
[1748150800605,1.75527709,2506.4,2506.2,6.368]
[1748150800833,0.37092094,2506.4,2506.2,6.368]
[1748150801350,0.37092094,2506.3,2506.1,0.05]
[1748150801506,0.37092094,2506.3,2506.2,6.368]
[1748150802648,0.37092094,2506.3,2506.2,6.369]
[1748150804860,0.37092094,2506.3,2506.1,0.05]
[1748150805059,0.37092094,2506.3,2506.2,6.369]
[1748150806556,0.37092094,2506.3,2506.2,7.1355]
[1748150806775,9.50079604,2506.5,2506.2,7.1355]
[1748150807449,9.50079604,2506.5,2506.3,20.062]
[1748150807766,9.50079604,2506.5,2506.4,0.7665]
[1748150808060,9.50079604,2506.5,2506.4,13.032]
[1748150809258,9.50079604,2506.5,2506.4,6.369]
[1748150809466,9.50079604,2506.5,2506.4,7.1927]
[1748150810163,17.50079604,2506.5,2506.4,7.1927]
[1748150815059,0.63276494,2507.0,2506.5,0.7742]
[1748150815365,8.63276494,2507.1,2506.5,0.7742]
[1748150816342,8.0,2507.1,2506.5,0.7742]
[1748150817630,8.0,2507.1,2506.7,0.7742]
[1748150818964,0.63276494,2507.5,2506.7,0.7742]
[1748150819142,8.63276494,2507.5,2506.7,0.7742]
[1748150819756,2.00978336,2507.6,2506.7,0.7742]
[1748150819966,8.0,2507.8,2506.7,0.7742]
[1748150821369,8.0,2507.8,2506.8,6.367]
[1748150821585,0.7913,2507.7,2506.9,7.1322]
[1748150821781,0.7913,2507.7,2507.0,6.367]
[1748150822782,10.939,2507.6,2506.9,0.7652]
[1748150822990,0.7913,2507.5,2507.1,6.367]
[1748150823148,2.00139616,2507.5,2507.1,6.367]
[1748150823549,0.37066164,2507.4,2507.1,6.367]
[1748150824190,0.37066164,2507.4,2507.2,6.367]
[1748150824591,2.00139616,2507.5,2507.2,6.367]
[1748150824794,1.29403962,2507.4,2507.2,6.367]
[1748150825284,8.0,2507.3,2507.2,6.367]
[1748150827491,8.0,2507.3,2507.2,27.33]
[1748150829795,8.0,2507.3,2506.7,0.7652]
[1748150830006,8.0,2507.3,2507.2,6.367]
[1748150830303,9.95861357,2507.3,2507.2,6.367]
[1748150831897,12.34761357,2507.3,2507.2,6.367]
[1748150832100,9.95861357,2507.3,2507.2,6.367]
[1748150836111,10.32948262,2507.3,2507.2,6.367]
[1748150837514,10.32948262,2507.3,2507.2,14.326]
[1748150837813,10.32948262,2507.3,2507.2,6.637]
[1748150838013,10.32948262,2507.3,2507.2,13.004]
[1748150839614,10.32948262,2507.3,2506.7,0.7652]
[1748150839812,10.32948262,2507.3,2507.2,6.367]
[1748150840009,10.32948262,2507.3,2506.7,0.7652]
[1748150840232,10.32948262,2507.3,2506.8,6.367]
[1748150840618,10.32948262,2507.3,2506.9,6.367]
[1748150841231,0.37086905,2507.2,2506.9,6.367]
[1748150842233,9.95861357,2507.3,2506.9,6.367]
[1748150844233,9.95861357,2507.3,2506.7,0.7652]
[1748150844234,19.45940961,2507.3,2506.7,0.7652]
[1748150844397,0.37151739,2507.2,2507.0,6.367]
[1748150845209,0.37151739,2507.1,2507.0,6.367]
[1748150847765,0.37151739,2507.1,2507.0,33.06]
[1748150848122,0.37151739,2507.1,2507.0,27.33]
[1748150848523,0.37151739,2507.1,2507.0,13.004]
[1748150848751,17.50079604,2507.3,2507.0,13.004]
[1748150849861,0.37186121,2507.2,2507.0,13.004]
[1748150850655,0.37186121,2507.1,2507.0,6.367]
[1748150857470,0.37186121,2507.1,2507.0,27.33]
[1748150860770,0.37186121,2507.1,2507.0,6.367]
[1748150864971,0.37186121,2507.1,2506.7,0.7652]
[1748150865141,0.37186121,2507.1,2506.8,6.367]
[1748150865677,0.37186121,2507.0,2506.8,6.367]
[1748150866780,18.13356098,2507.3,2506.8,6.367]
[1748150866941,20.26494708,2507.3,2506.8,6.367]
[1748150867473,20.26494708,2507.3,2506.9,26.693]
[1748150867681,0.37187507,2507.2,2506.9,26.693]
[1748150868747,0.37187507,2507.1,2506.9,26.693]
[1748150869374,0.37187507,2507.0,2506.9,26.693]
[1748150869671,0.37187507,2507.0,2506.9,6.637]
[1748150869870,0.37187507,2507.0,2506.8,6.367]
[1748150870298,18.13356098,2507.3,2506.8,6.367]
[1748150870571,1.8133561,2507.2,2506.8,6.367]
[1748150871205,0.37186139,2507.1,2506.8,6.367]
[1748150871386,0.37186139,2507.1,2506.9,6.367]
[1748150872396,0.37186139,2507.0,2506.9,6.367]
[1748150873095,0.63276494,2507.2,2506.9,6.367]
[1748150873299,18.13356098,2507.3,2506.9,6.367]
[1748150873500,19.54900014,2507.3,2506.9,6.367]
[1748150873969,0.37186744,2507.2,2506.9,6.367]
[1748150874810,19.54900014,2507.3,2506.9,6.367]
[1748150874811,0.37186744,2507.1,2506.9,6.367]
[1748150875478,0.37186744,2507.0,2506.9,6.367]
[1748150877515,0.37186744,2507.0,2506.9,33.06]
[1748150877811,0.37186744,2507.0,2506.9,27.33]
[1748150880304,0.37186744,2507.0,2506.7,0.7652]
[1748150880501,0.37186744,2507.0,2506.8,6.367]
[1748150880896,3.81456494,2507.2,2506.8,6.367]
[1748150881096,8.0,2507.0,2506.8,6.367]
[1748150886023,8.0,2507.0,2506.7,0.7652]
[1748150886185,8.0,2507.0,2506.9,6.367]
[1748150886385,8.37177969,2507.0,2506.9,6.367]
[1748150887498,8.37177969,2507.0,2506.9,33.056]
[1748150888022,8.37177969,2507.0,2506.9,14.326]
[1748150888227,8.37177969,2507.0,2506.9,27.326]
[1748150890319,0.37177969,2507.0,2506.9,6.367]
[1748150894931,0.37177969,2507.0,2506.3,0.7944]
[1748150894932,3.2003,2506.9,2506.3,0.7944]
[1748150895226,9.50079604,2506.8,2506.4,6.367]
[1748150895628,0.37177969,2506.7,2506.4,6.367]
[1748150896106,0.37177969,2506.6,2506.4,6.367]
[1748150896443,1.18307969,2506.6,2506.1,0.05]
[1748150896651,1.18307969,2506.6,2506.5,6.367]
[1748150896833,3.43973414,2506.6,2506.5,6.367]
[1748150897629,3.43973414,2506.6,2506.5,27.327]
[1748150898005,3.43973414,2506.6,2506.5,14.327]
[1748150898214,25.80115477,2506.6,2506.5,14.327]
[1748150898410,23.54450032,2506.6,2506.5,27.327]
[1748150898639,23.54450032,2506.6,2506.5,6.367]
[1748150902248,2.939,2506.4,2506.1,0.05]
[1748150902549,12.06884977,2506.3,2506.2,6.368]
[1748150902750,12.01896428,2506.3,2506.2,6.368]
[1748150903346,12.01896428,2506.3,2506.1,0.05]
[1748150903825,12.01896428,2506.3,2506.2,6.368]
[1748150904061,11.64718459,2506.3,2506.2,6.368]
[1748150904388,12.04281934,2506.3,2506.2,6.368]
[1748150905391,12.04281934,2506.3,2506.2,6.369]
[1748150905548,12.4125754,2506.3,2506.2,6.369]
[1748150906644,12.4125754,2506.3,2506.1,0.05]
[1748150906845,1.48015754,2506.2,2506.1,0.05]
[1748150907071,1.48015754,2506.2,2506.1,6.419]
[1748150907485,1.48015754,2506.2,2506.1,27.385]
[1748150907683,18.98095358,2506.2,2506.1,27.385]
[1748150910989,18.98095358,2506.2,2506.1,13.054]
[1748150911988,21.36995358,2506.2,2506.1,13.054]
[1748150912293,18.98095358,2506.2,2506.1,13.054]
[1748150912896,18.98095358,2506.2,2506.1,6.419]
[1748150914989,10.98095358,2506.2,2506.1,6.419]
[1748150917495,10.98095358,2506.2,2506.1,27.385]
[1748150918174,10.98095358,2506.2,2506.1,21.016]
[1748150918374,10.98095358,2506.2,2506.1,27.386]
[1748150920285,10.98095358,2506.2,2506.1,13.054]
[1748150920721,11.53095358,2506.2,2506.1,13.054]
[1748150921124,11.90098845,2506.2,2506.1,13.054]
[1748150922224,11.90098845,2506.2,2506.1,6.42]
[1748150925729,12.53240859,2506.2,2506.1,6.42]
[1748150926735,11.90098845,2506.2,2506.1,6.42]
[1748150927718,11.90098845,2506.2,2506.1,27.386]
[1748150929724,11.90098845,2506.2,2506.1,13.054]
[1748150931735,11.90098845,2506.2,2506.1,6.42]
[1748150933237,11.35098845,2506.2,2506.1,6.42]
[1748150933437,9.87083091,2506.2,2506.1,6.42]
[1748150936247,9.87083091,2506.2,2506.1,0.05]
[1748150936650,9.87083091,2506.2,2506.1,6.42]
[1748150937506,9.87083091,2506.2,2506.1,27.387]
[1748150941450,9.87083091,2506.2,2506.1,13.054]
[1748150943147,9.87083091,2506.2,2506.1,0.05]
[1748150943360,11.0481063,2506.2,2506.1,6.42]
[1748150947560,11.0481063,2506.2,2506.1,27.384]
[1748150948425,11.5981063,2506.2,2506.1,27.384]
[1748150950265,11.5981063,2506.2,2506.1,0.05]
[1748150950566,11.5981063,2506.2,2506.1,13.051]
[1748150952257,13.9871063,2506.2,2506.1,6.42]
[1748150956380,11.0481063,2506.2,2506.1,6.42]
[1748150956769,9.87083091,2506.2,2506.1,6.42]
[1748150957503,9.87083091,2506.2,2506.1,27.384]
[1748150958784,9.87083091,2506.2,2506.1,28.1997]
[1748150959145,9.87083091,2506.2,2506.1,7.2357]
[1748150960447,10.50553292,2506.2,2506.1,7.2357]
[1748150961883,9.87083091,2506.2,2506.1,7.2357]
[1748150964995,9.50079604,2506.2,2506.1,7.2357]
[1748150966805,9.50079604,2506.2,2506.1,7.1857]
[1748150967482,9.50079604,2506.2,2506.1,33.8797]
[1748150968000,9.50079604,2506.2,2506.1,13.8167]
[1748150968803,9.87206589,2506.6,2506.2,0.782]
[1748150968974,0.37126985,2506.5,2506.2,0.782]
[1748150969914,9.50079604,2506.6,2506.2,0.782]
[1748150971778,9.50079604,2506.6,2506.2,8.0]
[1748150972112,9.50079604,2506.6,2506.3,0.7924]
[1748150973322,9.50079604,2507.1,2506.3,0.7924]
[1748150974908,9.50079604,2507.1,2506.6,0.7924]
[1748150975094,10.53180564,2507.1,2506.6,0.7924]
[1748150975480,2.30451084,2507.0,2506.3,0.7924]
[1748150975701,2.3543751,2507.0,2506.4,6.368]
[1748150975907,11.85517114,2507.0,2506.4,6.368]
[1748150976080,11.80530688,2507.0,2506.4,6.368]
[1748150976281,1.52253165,2506.9,2506.4,6.368]
[1748150976709,1.52253165,2506.9,2506.3,0.7924]
[1748150976710,2.389,2506.8,2506.5,6.368]
[1748150976908,3.91153165,2506.9,2506.5,6.368]
[1748150977498,3.91153165,2506.9,2506.6,26.685]
[1748150978618,3.91153165,2506.9,2506.6,20.954]
[1748150980544,3.91153165,2506.9,2506.6,6.626]
[1748150980757,1.42216277,2506.8,2506.6,6.626]
[1748150981453,10.92295881,2506.8,2506.6,6.626]
[1748150982952,10.92295881,2506.8,2506.3,0.7924]
[1748150983159,10.92295881,2506.8,2506.4,6.368]
[1748150983470,10.92295881,2506.8,2506.5,6.368]
[1748150983673,1.33119588,2506.7,2506.6,6.368]
[1748150984475,1.33119588,2506.7,2506.3,0.7924]
[1748150984681,1.33119588,2506.7,2506.6,6.368]
[1748150986988,9.50079604,2506.8,2506.6,6.368]
[1748150987481,9.50079604,2506.8,2506.7,26.685]
[1748150987983,9.50079604,2506.8,2506.7,20.954]
[1748150990505,9.50079604,2506.8,2506.6,6.368]
[1748150992794,9.50079604,2506.8,2506.7,6.368]
[1748150992989,10.77070564,2506.8,2506.7,6.368]
[1748150993493,11.14205127,2506.8,2506.7,6.368]
[1748150997200,9.87214167,2506.8,2506.7,6.368]
[1748150997581,9.87214167,2506.8,2506.7,33.053]
[1748150999827,9.87214167,2506.8,2506.7,12.994]
[1748151000031,9.87214167,2506.8,2506.7,6.368]
[1748151001332,9.87214167,2506.8,2506.7,7.1709]
[1748151001491,9.50079604,2506.8,2506.7,7.1709]
[1748151004931,0.3717628,2507.2,2506.7,7.1709]
[1748151005431,2.23498889,2507.2,2506.8,6.367]
[1748151005835,2.23498889,2507.2,2505.9,0.7964]
[1748151006130,0.3717628,2507.1,2506.2,0.7964]
[1748151006492,0.3717628,2507.0,2506.2,0.7964]
[1748151006694,0.3717628,2507.0,2506.4,8.7964]
[1748151007510,10.31329604,2507.2,2506.5,26.679]
[1748151008331,0.37175175,2507.1,2506.5,26.679]
[1748151008736,0.37175175,2507.1,2506.6,12.989]
[1748151009137,0.37175175,2507.0,2506.7,12.989]
[1748151009839,0.37175175,2507.0,2506.7,6.367]
[1748151010338,10.94799805,2507.2,2506.7,6.367]
[1748151010535,1.33369981,2507.1,2506.7,6.367]
[1748151011618,1.33369981,2507.1,2506.4,0.7964]
[1748151011819,1.33369981,2507.1,2506.8,6.367]
[1748151012316,0.37178642,2507.0,2506.8,6.367]
[1748151013434,0.37178642,2507.0,2506.4,0.7964]
[1748151013736,1.33369981,2507.1,2506.5,6.367]
[1748151014943,1.33369981,2507.1,2506.4,0.7964]
[1748151015242,1.33369981,2507.1,2506.6,6.367]
[1748151015636,1.33369981,2507.1,2506.7,6.367]
[1748151015811,1.33369981,2507.1,2506.8,6.367]
[1748151016010,0.37186139,2507.0,2506.8,6.367]
[1748151017110,13.33699805,2507.2,2506.8,6.367]
[1748151017307,1.33369981,2507.1,2506.8,6.367]
[1748151017503,10.31329604,2507.2,2506.9,20.948]
[1748151017922,0.37187422,2507.1,2506.9,20.948]
[1748151018945,0.37187422,2507.0,2506.9,20.948]
[1748151019296,0.37187422,2507.0,2506.8,6.367]
[1748151019629,0.79,2506.9,2505.7,0.7563]
[1748151019812,0.37187422,2506.8,2505.9,0.7563]
[1748151020012,0.37187422,2506.8,2505.9,8.7563]
[1748151020557,0.37187422,2506.7,2506.0,0.7563]
[1748151021116,0.79,2506.6,2506.0,0.7563]
[1748151027544,0.79,2506.6,2506.1,26.681]
[1748151028055,0.79,2506.6,2506.1,6.622]
[1748151029870,0.79,2506.6,2506.0,0.7563]
[1748151033281,0.79,2506.6,2506.1,6.368]
[1748151037481,0.79,2506.6,2506.2,26.678]
[1748151038146,0.8191,2506.8,2506.1,6.368]
[1748151038348,0.63470201,2506.9,2506.2,0.757]
[1748151038759,10.31989604,2507.0,2506.2,0.757]
[1748151039813,0.37173428,2506.9,2506.2,0.757]
[1748151040607,10.31989604,2507.0,2506.2,0.757]
[1748151041935,10.31989604,2507.0,2506.2,8.757]
[1748151042494,0.37181763,2506.9,2506.2,8.757]
[1748151042699,0.37181763,2506.9,2506.2,0.757]
[1748151042902,0.8249,2506.8,2506.3,6.368]
[1748151043104,1.19671763,2506.8,2506.3,6.368]
[1748151043811,0.8249,2506.8,2506.3,6.368]
[1748151044324,10.32389604,2507.0,2506.3,6.368]
[1748151044676,0.37201256,2506.9,2506.3,6.368]
[1748151046101,10.32389604,2507.0,2506.3,6.368]
[1748151047479,10.32389604,2507.0,2506.4,26.678]
[1748151049372,0.37203145,2506.9,2506.4,26.678]
[1748151049580,0.7854,2506.8,2505.9,0.7507]
[1748151049779,0.7854,2506.8,2506.0,6.367]
[1748151050099,0.37203145,2506.7,2506.0,6.367]
[1748151050488,0.7854,2506.6,2506.0,6.367]
[1748151050815,0.7854,2506.6,2505.9,0.7507]
[1748151051117,0.7854,2506.6,2506.0,6.367]
[1748151052816,0.7854,2506.9,2506.0,6.367]
[1748151053317,0.37198854,2506.8,2506.0,6.367]
[1748151053514,0.37198854,2506.8,2506.1,0.7507]
[1748151054179,0.7854,2506.9,2506.1,0.7507]
[1748151056026,0.7854,2506.9,2506.2,6.367]
[1748151057601,0.7854,2506.9,2506.3,20.946]
[1748151058729,9.50079604,2507.0,2506.4,0.7507]
[1748151061934,0.7854,2506.9,2506.5,6.367]
[1748151062092,1.8140196,2506.9,2506.5,6.367]
[1748151063411,0.7854,2506.9,2506.5,6.367]
[1748151065321,0.7854,2506.9,2506.6,1.92077984]
[1748151066099,0.7854,2506.9,2506.0,0.7507]
[1748151066298,0.7854,2506.9,2506.4,1.92077984]
[1748151067405,0.7854,2506.9,2506.5,5.73]
[1748151067612,0.7854,2506.9,2506.6,8.0]
[1748151068538,0.7854,2506.9,2506.7,6.367]
[1748151069561,9.50079604,2507.0,2506.7,6.367]
[1748151073865,9.50079604,2507.0,2506.8,1.92077984]
[1748151074068,0.8122,2507.3,2506.8,1.92077984]
[1748151077486,0.8122,2507.3,2506.9,26.67]
[1748151077780,0.8122,2507.3,2507.0,6.366]
[1748151083588,0.8122,2507.3,2507.1,6.366]
[1748151084983,2.389,2507.2,2507.1,6.366]
[1748151085188,0.8122,2507.3,2507.1,6.366]
[1748151086112,0.8122,2507.3,2507.2,6.366]
[1748151086509,1.1843697,2507.3,2507.2,6.366]
[1748151087510,1.1843697,2507.3,2507.2,33.034]
[1748151090013,1.1843697,2507.3,2507.2,12.981]
[1748151094041,1.1843697,2507.3,2507.2,6.366]
[1748151097462,1.1843697,2507.3,2507.2,26.419]
[1748151097671,1.1843697,2507.3,2507.2,33.032]
[1748151098037,1.1843697,2507.3,2507.2,27.303]
[1748151099868,1.1843697,2507.3,2507.2,12.979]
[1748151100169,1.1843697,2507.3,2506.6,2.70047984]
[1748151100368,1.1843697,2507.3,2506.7,6.366]
[1748151100759,0.3721697,2507.2,2506.7,6.366]
[1748151101748,0.3721697,2507.2,2506.8,2.74497984]
[1748151101932,9.50079604,2507.4,2506.8,2.74497984]
[1748151104475,9.50079604,2507.4,2507.1,0.774]
[1748151104691,9.50079604,2507.4,2507.2,6.366]
[1748151107460,9.50079604,2507.4,2507.3,26.665]
[1748151108102,0.63470201,2507.7,2507.3,6.612]
[1748151108459,10.13549805,2507.8,2507.3,6.612]
[1748151108771,10.13549805,2507.8,2507.4,0.774]
[1748151109175,0.63470201,2507.8,2507.6,1.92077984]
[1748151109359,0.63470201,2507.8,2507.7,7.1492]
[1748151109555,0.05,2507.9,2507.7,7.1492]
[1748151109982,0.05,2507.9,2507.8,2.70397984]
[1748151110950,0.05,2507.9,2507.8,3.25397984]
[1748151112130,0.05,2507.9,2507.8,11.63373957]
[1748151115167,0.05,2507.9,2507.8,11.25397984]
[1748151117453,0.05,2507.9,2507.8,37.90897984]
[1748151121068,0.05,2507.9,2507.8,17.86397984]
[1748151121268,0.05,2507.9,2507.8,17.61697984]
[1748151127667,0.05,2507.9,2507.8,44.27897984]
[1748151128135,0.05,2507.9,2507.8,24.23697984]
[1748151128645,0.05,2507.9,2507.8,17.61697984]
[1748151129570,0.05,2507.9,2507.8,11.25397984]
[1748151129785,0.05,2507.9,2507.8,17.61597984]
[1748151130289,0.05,2507.9,2507.8,10.70397984]
[1748151130496,0.05,2507.9,2507.8,17.06597984]
[1748151132705,0.05,2507.9,2507.8,10.70397984]
[1748151133066,0.05,2507.9,2507.8,17.06597984]
[1748151137474,0.05,2507.9,2507.8,21.96277984]
[1748151137676,0.05,2507.9,2507.8,14.90277984]
[1748151137879,0.05,2507.9,2507.8,8.28277984]
[1748151140510,0.05,2507.9,2507.8,16.28277984]
[1748151144215,0.05,2507.9,2507.8,8.28277984]
[1748151147528,0.05,2507.9,2507.8,42.94677984]
[1748151148228,0.05,2507.9,2507.8,22.90377984]
[1748151152323,0.05,2507.9,2507.8,16.28277984]
[1748151155208,0.05,2507.9,2507.8,17.09017984]
[1748151155741,0.05,2507.9,2507.8,17.47105149]
[1748151157634,0.05,2507.9,2507.8,44.12305149]
[1748151159044,0.05,2507.9,2507.8,43.31665149]
[1748151159883,0.05,2507.9,2507.8,42.93577984]
[1748151160937,0.05,2507.9,2507.8,16.28377984]
[1748151164971,0.05,2507.9,2507.8,17.09117984]
[1748151165135,0.05,2507.9,2507.8,17.47241532]
[1748151167568,0.76184233,2508.6,2508.3,1.92077984]
[1748151170446,0.76184233,2508.6,2508.5,1.92077984]
[1748151170646,0.76184233,2508.6,2508.5,8.28377984]
[1748151173678,0.76184233,2508.6,2508.5,6.363]
[1748151177517,0.76184233,2508.6,2508.5,33.012]
[1748151179078,0.76184233,2508.6,2508.5,12.971]
[1748151181689,0.8499,2508.9,2508.5,14.89177984]
[1748151182089,0.8499,2508.9,2508.5,8.28377984]
[1748151183687,0.8499,2508.9,2508.1,0.8074]
[1748151183928,0.7999,2508.8,2508.4,1.92077984]
[1748151187439,0.7999,2508.8,2508.5,5.726]
[1748151187746,0.7999,2508.8,2508.5,26.649]
[1748151188134,0.7999,2508.8,2508.5,6.608]
[1748151190072,0.7999,2508.8,2508.4,1.92077984]
[1748151197583,0.7999,2508.8,2508.5,26.645]
[1748151198250,0.7999,2508.8,2508.5,6.606]
[1748151201687,0.7999,2508.8,2508.5,8.09750003]
[1748151202284,0.7999,2508.8,2508.5,1.49150003]
[1748151207480,0.7999,2508.8,2508.6,6.606]
[1748151207682,0.7999,2508.8,2508.7,1.49150003]
[1748151210910,0.7999,2508.8,2508.7,6.362]
[1748151217526,0.7999,2508.8,2508.7,33.007]
[1748151219123,1.17258227,2508.8,2508.7,33.007]
[1748151220714,1.17258227,2508.8,2508.7,6.362]
[1748151220913,1.17258227,2508.8,2508.2,0.7606]
[1748151221093,1.17258227,2508.8,2508.7,6.362]
[1748151225929,0.7999,2508.8,2508.7,6.362]
[1748151227537,0.7999,2508.8,2508.7,18.692]
[1748151229241,0.7999,2508.8,2508.7,12.966]
[1748151231346,0.7999,2508.8,2508.7,6.362]
[1748151237151,1.17238044,2508.8,2508.7,6.362]
[1748151237515,1.17238044,2508.8,2508.7,12.966]
[1748151238857,1.17238044,2508.8,2508.7,6.604]
[1748151239035,1.17238044,2508.8,2508.4,1.49150003]
[1748151239348,0.8285,2508.7,2508.5,6.362]
[1748151239658,0.8285,2508.7,2508.1,1.49150003]
[1748151239659,0.8285,2508.6,2508.1,1.49150003]
[1748151240008,0.8285,2508.6,2508.2,6.362]
[1748151240407,0.37248044,2508.5,2508.2,6.362]
[1748151241342,0.8285,2508.6,2508.2,6.362]
[1748151241526,0.81355,2508.6,2508.2,6.362]
[1748151246335,0.81355,2508.6,2508.3,1.49150003]